Cogmind - Beta 15 @@@ ROGUE MODE // 2025.07.26 @ 09:06:01 Player: phil_doe Result: Destroyed by Y-45 Defender with Heavy Assault Rifle Performance ------------- Evolutions (1) 500 Regions Visited (2) 400 Robots Destroyed (17) 85 Value Destroyed (347) 347 Prototype IDs (0) 0 Alien Tech Used (0) 0 Bonus (0) 0 TOTAL SCORE: 1332 Bonus ------- None Cogmind --------- Core Integrity 0/400 Matter 300/300 Energy 99/100 System Corruption 0% Temperature Cool (0) Movement Core (200) Ox3 Location -9/Materials Parts ------- > --- POWER (1) -------- (None) > --- PROPULSION (3) --- (None) > --- UTILITY (3) ------ Medium Storage Unit Hacking Suite > --- WEAPON (2) ------- (None) > --- INVENTORY (10) --- Ion Engine Heat Sink Core Shielding Peak State ------------ > --- POWER ------------ Light Ion Engine > --- PROPULSION ------- Aluminum Leg Aluminum Leg > --- UTILITY ---------- Medium Storage Unit Light Armor Plating Hacking Suite > --- WEAPON ----------- Beam Rifle Assault Rifle > --- INVENTORY -------- Ion Engine Core Shielding EM Pulse Gun Grenade Launcher [Rating: 11] Favorites ----------- Power Light Ion Engine Engine Light Ion Engine Propulsion Wheel Leg Aluminum Leg Wheel Wheel Utility Hacking Suite Storage Medium Storage Unit Hackware Hacking Suite Protection Light Armor Plating Weapon Assault Rifle Energy Gun EM Pulse Gun Ballistic Gun Assault Rifle Launcher Grenade Launcher Build | -11 -10 -9 ------- Run | Yrd Mat Mat Slots Evolved 2 | . . 2 Power . | . . . Propulsion 1 | . . 1 Utility 1 | . . 1 Weapon . | . . . Parts Attached 14 | 5 5 4 Power 1 | 1 . . Engine 1 | 1 . . Core . | . . . Reactor . | . . . Propulsion 5 | 2 1 2 Treads . | . . . Leg 2 | . . 2 Wheel 3 | 2 1 . Hover . | . . . Flight . | . . . Utility 3 | . 2 1 Device . | . . . Storage 1 | . 1 . Processor . | . . . Hackware 1 | . 1 . Protection 1 | . . 1 Artifact . | . . . Weapon 5 | 2 2 1 Energy Gun 2 | 1 . 1 Energy Cannon . | . . . Ballistic Gun 2 | 1 1 . Ballistic Cannon . | . . . Launcher 1 | . 1 . Special Weapon . | . . . Impact Weapon . | . . . Slashing Weapon . | . . . Piercing Weapon . | . . . Special Melee Weapon . | . . . Unidentified Prototypes . | . . . Parts Lost 10 | . . 10 Power 1 | . . 1 Propulsion 4 | . . 4 Utility 1 | . . 1 Weapon 4 | . . 4 Highest Loss Streak 8 | . . 8 To Critical Strikes . | . . . Average Backups 3 | 1 4 3 Power . | . 1 1 Propulsion 1 | . 2 . Utility . | . . 1 Weapon . | . . . Tool/Special . | . . . Unused Backups 5 | . 2 3 Power 1 | . . 1 Propulsion 2 | . 2 . Utility 2 | . . 2 Weapon . | . . . Tool/Special . | . . . Average Slot Usage (%) 69 | . 79 57 Engine 11 | . 14 7 Leg 3 | . . 8 Wheel 17 | . 28 3 Storage 6 | . 2 11 Hackware 8 | . 6 11 Protection 1 | . . 2 Energy Gun 8 | . 9 7 Ballistic Gun 10 | . 15 5 Launcher 2 | . 3 . Peak Build Rating 11 | 5 9 11 Average Rating 6 | 4 6 7 On Entrance 4 | . 5 9 Naked Turns . | . . . Heaviest Build 21 | 7 17 21 Greatest Support 20 | 20 20 20 Greatest Overweight (x) 4 | . . 4 Average Overweight (x) . | . . 1 Largest Inventory Capacity 10 | 5 10 10 Average Capacity 7 | 5 5 10 Most Carried 5 | 4 5 5 Average Carried 3 | 1 4 3 Final Capacity 10 | 5 10 10 Final Carried 5 | 4 5 3 Class Distribution -------------------- 89% | Mutant 10% | Scavenger-Mutant Dominant Class ---------------- Mutant | -10/Materials Mutant | -9/Materials Resources | -11 -10 -9 ----------- Run | Yrd Mat Mat Matter Collected 554 | 256 159 139 Remotely . | . . . Salvage Created 356 | 48 138 170 Parts 34 | 2 22 10 Haulers Intercepted . | . . . Recyclers Shooed 2 | . . 2 Parts Field Recycled . | . . . Retrieved Matter . | . . . Parts Self-Destructed . | . . . Prevented . | . . . Kills | -11 -10 -9 ------- Run | Yrd Mat Mat Combat Hostiles Destroyed 12 | 1 7 4 Guns 7 | 1 3 3 AOE 5 | . 4 1 Classes Destroyed 8 | 1 4 3 Worker 2 | . 2 . Mechanic 1 | . . 1 Operator 1 | . 1 . Watcher 1 | . 1 . Swarmer 6 | . 6 . Grunt 4 | 1 1 2 Brawler 1 | . . 1 Sentry 1 | . . 1 Best Kill Streak 3 | 1 3 2 Combat Bots Only 3 | 1 3 2 Max Kills in Single Turn 3 | 1 3 1 Gunslinging . | . . . Exploded 3 | . 3 1 Melee . | . . . Uniques/NPCs Destroyed . | . . . Combat | -11 -10 -9 -------- Run | Yrd Mat Mat Hostile Shots Fired 130 | 3 17 110 Missed 39 | 2 5 32 Hits 91 | 1 12 78 Projectile 91 | 1 12 78 Critical Strikes 3 | . . 3 Damage Taken 1299 | 11 144 1144 Core 413 | . 8 405 Absorbed by Shields . | . . . Regen/Repaired (Parts) 44 | . . 44 Core Remaining (%) 98 | 100 96 . Volleys Fired 49 | 2 15 32 Largest 2 | 2 2 2 Hottest 86 | 60 70 86 Shots Fired 85 | 4 29 52 Gun 75 | 4 25 46 Cannon . | . . . Launcher 10 | . 4 6 Special . | . . . Kinetic 29 | 2 13 14 Thermal 15 | . . 15 Explosive 10 | . 4 6 Electromagnetic 31 | 2 12 17 Robot Hit Streak 8 | 2 3 8 Robot Miss Streak 5 | 1 4 5 Penetration Max . | . . . Secondary Targets . | . . . Shots Hit Robots 47 | 3 7 37 Core Hits 31 | 2 13 16 Critical Kills . | . . . Critical Parts Destroyed . | . . . Critical Strikes 5 | . . 5 Burn 5 | . . 5 Melee Attacks . | . . . Impact . | . . . Slashing . | . . . Piercing . | . . . Sneak Attacks . | . . . Combat Hostiles . | . . . Follow-up Attacks . | . . . Damage Inflicted 1315 | 40 404 871 Guns 589 | 40 111 438 Cannons . | . . . Explosions 723 | . 293 430 Melee . | . . . Ramming 3 | . . 3 Kinetic 169 | 25 26 118 Thermal 161 | . . 161 Explosive 723 | . 293 430 Electromagnetic 259 | 15 85 159 Impact . | . . . Slashing . | . . . Piercing . | . . . Highest Corruption . | . . . Average Corruption . | . . . Corruption Purged . | . . . Corruption Blocked . | . . . Overload Shots . | . . . Overflow Damage . | . . . Projectiles . | . . . Explosions . | . . . Melee . | . . . Knockbacks . | . . . Impact . | . . . Kinetic . | . . . Secondary . | . . . Self-Inflicted Damage 40 | . 39 1 Shots 1 | . 1 . Rammed 1 | . . 1 Targets Rammed 1 | . . 1 Kicked . | . . . Crushed . | . . . Highest Temperature 337 | 6 18 337 Average Temperature 85 | 6 8 97 Received Heat Transfer 450 | 6 6 438 Effects 1 | . . 1 Energy Bleed 1 | . . 1 Siege Activations . | . . . Martial Activations . | . . . Shielding Activations . | . . . Robots Disrupted . | . . . Combat Hostiles . | . . . Robots Corrupted . | . . . Combat Hostiles . | . . . Parts Fried . | . . . Impact Corruptions . | . . . Robots Melted . | . . . Combat Hostiles . | . . . Parts Melted . | . . . Heat Transferred 777 | . . 777 Parts Sabotaged . | . . . Parts Stolen . | . . . Parts Stripped . | . . . Power Chain Reactions . | . . . Alert | -11 -10 -9 ------- Run | Yrd Mat Mat Maximum Alert Level . | . . . Low Security (%) 100 | 100 100 100 Level 1 . | . . . Level 2 . | . . . Level 3 . | . . . Level 4 . | . . . Level 5 . | . . . High Security . | . . . Max Security . | . . . Peak Influence 158 | 20 158 98 Initial 53 | . . 53 Average 47 | 2 66 42 Influence Increases 415 | 20 255 140 Destroy 0b10 Robot/C 240 | 20 140 80 Destroy 0b10 Robot/NC 25 | . 20 5 Destroy Leader 62 | . 32 30 Successful Hack 12 | . 10 2 Disable Machine 15 | . 15 . Destroy Structure 46 | . 23 23 Lose Combat Pursuer 15 | . 15 . Influence Decreases 415 | 20 127 268 Entered New Map 75 | . . 75 Time Decay 247 | 20 127 100 Lost Part 93 | . . 93 Squads Dispatched 1 | . 1 . Investigation . | . . . Extermination . | . . . Reinforcement 1 | . 1 . Assault . | . . . Garrison . | . . . Intercept . | . . . Searches Triggered . | . . . Construction Impeded . | . . . Haulers Reinforced . | . . . Active Scanning Responses . | . . . Cargo Convoy Interrupts . | . . . Stealth | -11 -10 -9 --------- Run | Yrd Mat Mat Distress Signals 2 | . 1 1 Communications Jammed . | . . . Distress Signals . | . . . Times Spotted 22 | 1 13 8 Peak Tracking Total 4 | 1 4 4 Tactical Retreats 1 | . 1 . Traps | -11 -10 -9 ------- Run | Yrd Mat Mat Traps Triggered . | . . . Indirectly . | . . . Trap Hack Attempts . | . . . Triggered . | . . . Disarmed . | . . . Reprogrammed . | . . . Reused . | . . . Traps Extracted . | . . . Installed . | . . . Triggered . | . . . Machines | -11 -10 -9 ---------- Run | Yrd Mat Mat Machines Disabled 1 | . 1 . Max in Single Turn 1 | . 1 . Machines Repaired . | . . . Machines Dismantled . | . . . Machines Sabotaged . | . . . Overloaded Fab Kills . | . . . Hacking | -11 -10 -9 --------- Run | Yrd Mat Mat Machines Accessed 6 | . 5 1 Terminals 5 | . 5 . Fabricators . | . . . Repair Stations 1 | . . 1 Recycling Units . | . . . Scanalyzers . | . . . Garrison Access . | . . . Total Hacks 11 | . 9 2 Successful 9 | . 7 2 Failed 2 | . 2 . Catastrophic . | . . . Database Lockouts . | . . . Manual 1 | . 1 . Terminals 9 | . 9 . Fabricators . | . . . Repair Stations 2 | . . 2 Recycling Units . | . . . Scanalyzers . | . . . Garrison Access . | . . . Terminal Hacks 7 | . 7 . Record 4 | . 4 . Emergency Access Points 1 | . 1 . Alert Level 2 | . 2 . Fabricator Hacks . | . . . Repair Station Hacks 2 | . . 2 Scan Component 1 | . . 1 Repair 1 | . . 1 Recycling Unit Hacks . | . . . Scanalyzer . | . . . Garrison Access Hacks . | . . . Unauthorized Hacks . | . . . Terminals . | . . . Fabricators . | . . . Repair Stations . | . . . Recycling Units . | . . . Scanalyzers . | . . . Garrison Access . | . . . Data Cores Recovered . | . . . Used . | . . . Hacking Detections 4 | . 3 1 Full Trace Events . | . . . Feedback Events . | . . . Feedback Blocked . | . . . Robot Schematics Acquired . | . . . Robots Built . | . . . Authchips . | . . . Time . | . . . Total Robot Build Rating . | . . . Part Schematics Acquired . | . . . Parts Built . | . . . Authchips . | . . . Time . | . . . Total Part Build Rating . | . . . Parts Repaired 1 | . . 1 Time 26 | . . 26 Parts Recycled . | . . . Recycled Matter . | . . . Retrieved Matter . | . . . Retrieved Components . | . . . Parts Scanalyzed . | . . . Part Schematics Acquired . | . . . Parts Damaged . | . . . Bothacking | -11 -10 -9 ------------ Run | Yrd Mat Mat Used RIF Installer . | . . . Robots Hacked . | . . . Non-combat . | . . . Combat . | . . . Robot Hacks Applied . | . . . Relay Couplers Released . | . . . Fabnet Peak Effective % . | . . . Robots Rewired . | . . . Allies Hacked . | . . . Hacks Repelled . | . . . Allies | -11 -10 -9 -------- Run | Yrd Mat Mat Total Allies . | . . . Largest Group . | . . . Highest-Rated Group . | . . . Highest-Rated Ally . | . . . Total Orders . | . . . Ally Attacks . | . . . Total Damage . | . . . Kills . | . . . Allies Corrupted . | . . . Allies Melted . | . . . Intel | -11 -10 -9 ------- Run | Yrd Mat Mat Active Infowar (turns) . | . . . Robot Analysis Total . | . . . Derelict Logs Recovered . | . . . Drone Launches . | . . . Drone Recoveries . | . . . Exploration | -11 -10 -9 ------------- Run | Yrd Mat Mat Turns Passed 772 | 118 362 292 Spaces Moved 629 | 133 371 125 Core 68 | 22 . 46 Treads . | . . . Legs 40 | . . 40 Wheels 521 | 111 371 39 Hover . | . . . Flight . | . . . Fastest Speed 50 | 50 80 80 Average Speed 94 | 75 80 155 Slowest Speed 250 | 80 80 250 Overloaded Moves . | . . . Propulsion Burnouts . | . . . Robots Hopped . | . . . Potential Cave-ins . | . . . Cave-ins Triggered . | . . . Exploration Rate (%) 29 | 10 62 15 Regions Visited 2 Branch Regions . Pre-discovered Areas . | . . . Known Exits Taken . | . . . Unknown Exits Taken 2 | 1 1 . Scrap Searched . | . . . Spaces Dug . | . . . Terrain Destroyed 65 | . 31 34 Melee . | . . . Projectile . | . . . AOE 65 | . 31 34 Terrain Rammed . | . . . Walls Destroyed . | . . . Machines Disabled . | . . . Actions | -11 -10 -9 --------- Run | Yrd Mat Mat Total 719 | 144 406 169 Wait . | . . . Move 627 | 132 370 125 Hop . | . . . Pick Up 13 | 5 6 2 Fast Attach 9 | 4 3 2 Attach 5 | 1 . 4 Detach 1 | . . 1 Swap 7 | . 5 2 Drop 7 | . 7 . Fire 49 | 2 15 32 Melee . | . . . Ram 1 | . . 1 Kick . | . . . Crush . | . . . Escape Stasis . | . . . Rewire . | . . . Trap . | . . . Miscellaneous . | . . . Route ------- -11/Scrapyard -10/Materials -9/Materials History --------- Turn | Location | Event 2 | -11/Scrapyard | Met Revision 17 45 | -11/Scrapyard | Discovered new exit (range 8) 119 | -11/Scrapyard | Entered Materials 344 | -10/Materials | Build established: Mutant 433 | -10/Materials | Discovered new exit (range 15) 481 | -10/Materials | Entered another Materials area 481 | -9/Materials | Evolved 2 slots: Propulsion x1, Utility x1 637 | -9/Materials | Repaired EM Pulse Gun? 682 | -9/Materials | Core integrity fell below 50% 712 | -9/Materials | Lost 8 parts (1p2n1u4w) 766 | -9/Materials | Core integrity fell below 20% 773 | -9/Materials | Destroyed by Y-45 Defender with Heavy Assault Rifle Last Messages --------------- Acquired 17 matter. R-06 Scavenger collects Wheel. U-05 Engineer lays Concrete. U-05 Engineer builds a Wall. Overheating: Energy bleed (-30). Acquired 2 matter. R-06 Scavenger collects Lgt. Ion Engine. Acquired EM Pulse Gun. K-01 Serf cleans the Fusion Modulator. Beam Rifle destroyed. R-06 Scavenger collects Hammer. Aluminum Leg destroyed. K-01 Serf collects debris. EM Pulse Gun destroyed. Lgt. Ion Engine destroyed. K-01 Serf collects debris. R-06 Scavenger collects Terrain Scan Processor. Slammed into K-01 Serf. Connecting with Scanalyzer... Critical hit (Burn: +37). Map ----- +----------------------------------------------------+ | ????????????????????? + | | ??????????????????# ] """ # % | | ??????????????????# ""??###%####### | | ?????????????????????? ??????# #?????? | | ?????????????????????????????#%#?????? | | ?????????????????????????????# ####### | | ?????????????????????????????# # | | ?????????????????????????????# # """ | | ?????????????????????????????# # """ | | ?????????????????????????????# # """ | | ???????????????????????#######+# | | ???????????????????????# # """ | | ???????????????????????# "" # """ | | ???????????????????????# """ # """ | | ??????????#######+###### S" # | | ??????????# # ####### | | ??????????# + """ #?????? | | ?????????????### #### ## """ #?????? | | ?????????????###+####+## """ #?????? | | ?????????????# # #?????? | | ??????????#??# ! # #??#### | | ??????????# ?# # #??# | | ??????????+ ?+ #########??# | | ??????????# #######+###??????????# | | ?????###### ##### #???????????#### | | ?????# @ Y" #??????????????? | | ?????# Y #??????????????? | | ?????# ##+####### #??????????????? | | ?????????????????# ###????????????? | | ?????????????????# #????????????? | | ?????????????????#! !#????????????? | | ?????????????????##!!!!##????????????? | | ??????????????????######?????????????? | | ?????????????????????????????????????? | | ?????????????????????????????????????? | | ?????????????????????????????????????? | | | | | | | | | | | | | | | | | | | | | | | | | | | | | +----------------------------------------------------+ Best States ------------- Heat Dissipation 28 Energy Generation 10 Energy Capacity 125 Matter Stores 300 Matter Capacity 300 Sight Range 16 Terrain Scan Density 10 Armor Coverage 150 Evasion (%) 50 Offensive Hacking 10 Item Schematics ----------------- None Robot Schematics ------------------ None Fabricated ------------ Nothing Repaired ---------- EM Pulse Gun | 2% | -9/Materials Alien Tech Used ----------------- None Achievements -------------- None Challenges ------------ None Game ------ Seed BombBombardmentBay Manual? 0 Play Time 00:28:42 Cumulative 2.6 hours Start 2025.07.26 @ 08:33:13 End 2025.07.26 @ 09:06:01 Sessions 1 Manual Loads 0 Difficulty Rogue Special Mode None Game No. 3 Rogue 3 Adventurer 0 Explorer 0 Win Type - Total 0 Types 0/0/0/0/0/0/0/0/0/0 Lore% 0 Gallery% 3 Achievement% 5 Wizard Run 0 Options --------- Layout 0 ASCII 0 Keyboard 1 Movement Arrows Keybinds 0 Fullscreen 2 Font 24/Smallcaps Map View 76x50 Zoom Use 0% Tactical HUD 0 Map Filters NONE Filters NONE Steam 1 RUN: 131e30d8-98e8-46e2-8ab4-1c5b84b4c675